{"text_format":"1","workbook":"xlsx","n_sheets":13,"sheets":["Титульный","Инструкция","Прил. № 1.1 город","Прил. № 1.2 не город","Прил. № 2.1 (год-3)","Прил. № 2.2 (год-2)","Прил. № 2.3 (год-1)","Прил. № 3.1 ('а' п.16)","Прил. № 3.2 ('в' п.16)","Прил. № 5.1 город","Прил. № 5.2 не город","Проверка","Справочник"],"not_rendered":{"charts":0,"images":0,"macros":1,"external_links":0,"defined_names":43,"comments":0,"pivot_tables":0},"unopened":[],"bounds":{"document_bytes":16777216,"sheet_cells":100000,"rows_first":2000,"rows_last":500,"rows_between":2000,"halvings":0,"cell_chars":16384,"cell_head_chars":4096},"cells_cut":0,"cells_raw":0,"read":"whole","date_system":"1900"}

{"sheet":"Титульный","index":0,"n_rows":23,"n_cols":3,"rows_kept":23,"cut":false,"hidden":false,"merged":[[3,1,3,2]]}
["SHABLON.TSO.2022"]
["Версия 22.0.1"]
[]
[null,"Информация о плате за техприсоединение к электросетям"]
[]
[null,"Наименование организации"]
[null,"ИНН"]
[null,"КПП"]
[null,"Наименование (описание) обособленного подразделения"]
[null,"Организационно-правовая форма"]
[null,"Вид деятельности"]
[null,"Период",2021]
[null,null,"Адрес регулируемой организации"]
[null,"Юридический адрес"]
[null,"Почтовый адрес"]
[null,null,"Руководитель"]
[null,"Фамилия, имя, отчество"]
[null,"Телефон"]
[null,null,"Ответственный за предоставление информации (от регулируемой организации)"]
[null,"Фамилия, имя, отчество"]
[null,"Должность"]
[null,"Контактный телефон"]
[null,"e-mail"]

{"sheet":"Инструкция","index":1,"n_rows":45,"n_cols":2,"rows_kept":45,"cut":false,"hidden":false,"merged":[[34,1,34,14],[43,1,43,14],[44,1,44,14],[41,1,41,14],[35,1,35,14],[36,1,36,14],[38,1,38,14],[39,1,39,14],[40,1,40,14],[42,1,42,14],[28,1,28,14],[29,1,29,14],[31,1,31,14],[32,1,32,14],[33,1,33,14],[23,1,23,14],[24,1,24,14],[25,1,25,14],[26,1,26,14],[27,1,27,14],[17,1,17,14],[19,1,19,14],[21,1,21,14],[18,1,18,14],[22,1,22,14],[12,1,12,14],[13,1,13,14],[14,1,14,14],[15,1,15,14],[16,1,16,14],[7,1,7,14],[8,1,8,14],[9,1,9,14],[10,1,10,14],[11,1,11,14],[1,1,1,14],[2,1,2,14],[3,1,3,14],[4,1,4,14],[6,1,6,14],[5,1,5,14]]}
[]
[null,"Инструкция\nпо заполнению приложений, направленных письмом Региональной энергетической комиссии Свердловской области (далее  –  РЭК Свердловской области), разработанных в соответствии с методическими указаниями  по определению размера платы за технологическое присоединение к электрическим сетям, утвержденными  приказом ФАС России от 29.08.2017 № 1135/17"]
[null,"1.  Ячейки голубого цвета подлежат обязательному заполнению территориальной сетевой организацией (далее – ТСО), ячейки желтого цвета предназначены для заполнения ТСО, ячейки зеленого цвета не подлежат заполнению."]
[null,{"$f":"\"2. Показатели в приложениях 1.1, 1.2, 5.1, 5.2 заполняются по заключенным договорам об осуществлении технологического присоединения к электрическим сетям ТСО (далее − договор) \"&\"по введенным в эксплуатацию объектам электросетевого хозяйства ТСО за периоды \"&IF(Титульный!C12=\"\",\"--- выберите период на листе Титульный.\",(Титульный!C12-3)&\", \"&(Титульный!C12-2)&\", \"&(Титульный!C12-1)&\" годы.\")","v":"2. Показатели в приложениях 1.1, 1.2, 5.1, 5.2 заполняются по заключенным договорам об осуществлении технологического присоединения к электрическим сетям ТСО (далее − договор) по введенным в эксплуатацию объектам электросетевого хозяйства ТСО за периоды 2018, 2019, 2020 годы."}]
[null,{"$f":"\"3. Показатели в приложениях 1.1, 1.2, 5.1, 5.2 заполняются раздельно для территорий городских населенных пунктов и для территорий, \" & \"не относящихся к городским населенным пунктам.\"","v":"3. Показатели в приложениях 1.1, 1.2, 5.1, 5.2 заполняются раздельно для территорий городских населенных пунктов и для территорий, не относящихся к городским населенным пунктам."}]
[null,"4. Показатели в приложениях 2.1, 2.2, 2.3, 3.1, 3.2 заполняются по выполненным договорам за 2018, 2019, 2020 годы."]
[null,{"$f":"\"5. В случае если ТСО за периоды \" &IF(Титульный!C12=\"\",\"--- выберите период на листе Титульный --- \",(Титульный!C12-3)&\", \"&(Титульный!C12-2)&\", \"&(Титульный!C12-1)&\" годы \") & \"осуществляла деятельность по технологическому присоединению раздельно по постоянной и временной схеме, необходимо дополнительно представить в РЭК Свердловской области информацию о расходах за периоды \" &IF(Титульный!C12=\"\",\"--- выберите период на листе Титульный ---\",(Титульный!C12-3)&\", \"&(Титульный!C12-2)&\", \"&(Титульный!C12-1)&\" годы\") & \" для установления РЭК Свердловской области стандартизированной тарифной ставки С1, ставки за единицу максиальной мощности C1maxN раздельно для постоянной и для временной схемы.\"","v":"5. В случае если ТСО за периоды 2018, 2019, 2020 годы осуществляла деятельность по технологическому присоединению раздельно по постоянной и временной схеме, необходимо дополнительно представить в РЭК Свердловской области информацию о расходах за периоды 2018, 2019, 2020 годы для установления РЭК Свердловской области стандартизированной тарифной ставки С1, ставки за единицу максиальной мощности C1maxN раздельно для постоянной и для временной схемы."}]
[null,"6. Приложение 4 к Методическим указаниям по определению размера платы за технологическое присоединение к электрическим сетям, утвержденным приказом ФАС России от 29.08.2017 № 1135/17 заполняется РЭК Свердловской области и не подлежит заполнению ТСО."]
[]
[null,"I. Заполнение приложений 1.1, 1.2."]
[null,"1) Приложение 1.1 заполняется для территорий городских населенных пунктов."]
[null,"2) Приложение 1.2 заполняется  для территорий, не относящихся к городским населенным пунктам."]
[null,"3) В графе 2 указываются характеристики объекта электросетевого хозяйства/средства коммерческого учета электрической энергии (мощности), введенного в эксплуатацию (наименование мероприятия, выполненного ТСО в соответствии с выданными техническими условиями)."]
[null,"4) В графах 3, 7, 11 указывается уровень напряжения, соответствующий уровню напряжения объекта электросетевого хозяйства/средства коммерческого учета электрической энергии (мощности), введенного в эксплуатацию (наименование мероприятия, выполненного ТСО в соответствии с выданными техническими условиями)."]
[null,"5) В графах 4, 8, 12 указывается протяженность воздушной или кабельной линий электропередачи (далее – ЛЭП) в километрах по трассе (без учета количества кабелей (проводов) в линии), а также количество пунктов секционирования и точек учета электрической энергии (мощности) в штуках."]
[null,"6) В графах 5, 9, 13 указывается размер присоединенной максимальной мощности энергопринимающего устройства заявителя согласно договору."]
[null,"8) В графах 6, 10, 14 указываются расходы на строительство введенных в эксплуатацию объектов электросетевого хозяйства ТСО, а также на обеспечение средствами коммерческого учета электрической энергии (мощности), в соответствии с учетной политикой ТСО (например: стоимость принимаемых основных фондов согласно формам КС-14, КС-11)."]
[null,"9) В графах 4, 6, 8, 10, 12, 14, 16, 18 указывается размерность показателей с учётом обязательного заполнения трех знаков после запятой"]
[null,"10) Графы 15-18 заполняются ТСО только в случае, если за 3 предыдущих года ТСО не осуществлялось строительство  объектов электросетевого хозяйства, а также обеспечение средствами коммерческого учета электрической энергии (мощности), в отношении которых устанавливаются стандартизированные тарифные ставки, по планируемым расходам, определенным по сметам, выполненным с применением сметных нормативов."]
[null,{"$f":"\"11) За периоды \" &IF(Титульный!C12=\"\",\"--- выберите период на листе Титульный --- \",(Титульный!C12-3)&\", \"&(Титульный!C12-2)&\", \"&(Титульный!C12-1)&\" годы \") & \"всем ТСО необходимо представить в РЭК Свердловской области документы, подтверждающие расходы на выполнение мероприятий по строительству объектов электросетевого хозяйства ТСО, а также на обеспечение средствами  коммерческого учета электрической энергии.\"","v":"11) За периоды 2018, 2019, 2020 годы всем ТСО необходимо представить в РЭК Свердловской области документы, подтверждающие расходы на выполнение мероприятий по строительству объектов электросетевого хозяйства ТСО, а также на обеспечение средствами  коммерческого учета электрической энергии."}]
[]
[null,"II.     Заполнение приложений 2.1, 2.2, 2.3."]
[null,{"$f":"\"1)           Приложение 2.1 заполняется за \" &IF(Титульный!C12=\"\",\"--- выберите период на листе Титульный.\",(Титульный!C12-3)&\" год.\")","v":"1)           Приложение 2.1 заполняется за 2018 год."}]
[null,{"$f":"\"2)           Приложение 2.2 заполняется за \" &IF(Титульный!C12=\"\",\"--- выберите период на листе Титульный.\",(Титульный!C12-2)&\" год.\")","v":"2)           Приложение 2.2 заполняется за 2019 год."}]
[null,{"$f":"\"3)           Приложение 2.3 заполняется за \" &IF(Титульный!C12=\"\",\"--- выберите период на листе Титульный.\",(Титульный!C12-1)&\" год.\")","v":"3)           Приложение 2.3 заполняется за 2020 год."}]
[null,"4)                     В графах 3-6 пункта 1 указываются расходы ТСО на выполнение мероприятий по подготовке и выдаче технических условий заявителю в тыс. рублей."]
[null,"5)           В графах 3-6 пунктов 2.1, 2.2 указываются расходы ТСО на выполнение мероприятий по проверке сетевой организацией выполнения заявителем технических условий в тыс. рублей."]
[null,"6)                     В графах 8-11 указывается количество технологических присоединений в соответствии с выполненными договорами в штуках."]
[null,"7)                     В графах 13-16 указывается объем присоединенной максимальной мощности в соответствии \nс выполненными договорами в кВт."]
[null,{"$f":"\"8)           За периоды \" &IF(Титульный!C12=\"\",\"--- выберите период на листе Титульный --- \",(Титульный!C12-3)&\", \"&(Титульный!C12-2)&\", \"&(Титульный!C12-1)&\" годы \") & \"всем ТСО необходимо представить в РЭК Свердловской области документы, подтверждающие расходы, количество техприсоединений, объем максимальной мощности.\"","v":"8)           За периоды 2018, 2019, 2020 годы всем ТСО необходимо представить в РЭК Свердловской области документы, подтверждающие расходы, количество техприсоединений, объем максимальной мощности."}]
[]
[null,"III.     Заполнение приложений 3.1, 3.2."]
[null,"1)                     Приложение 3.1 заполняется ТСО по мероприятию: подготовка и выдача сетевой организацией технических условий заявителю."]
[null,"2)                     Приложение 3.2 заполняется ТСО по мероприятию: проверка сетевой организацией выполнения заявителем технических условий."]
[null,"3)                     В графах 3-5 указываются расходы на выполнение мероприятий по технологическому присоединению с разбивкой по каждому показателю в тыс. рублей в соответствии с учетной политикой ТСО и бухгалтерской отчетностью."]
[null,"4)                     В графах 3-5 указывается размерность показателей с учётом обязательного заполнения трех знаков после запятой."]
[null,{"$f":"\"5)          За периоды \" &IF(Титульный!C12=\"\",\"--- выберите период на листе Титульный --- \",(Титульный!C12-3)&\", \"&(Титульный!C12-2)&\", \"&(Титульный!C12-1)&\" годы \") & \"всем ТСО необходимо представить в РЭК Свердловской области документы, подтверждающие расходы по технологическому присоединению.\"","v":"5)          За периоды 2018, 2019, 2020 годы всем ТСО необходимо представить в РЭК Свердловской области документы, подтверждающие расходы по технологическому присоединению."}]
[]
[null,"IV.     Заполнение приложений 5.1, 5.2."]
[null,"1)                     Приложение 5.1 заполняется для территорий городских населенных пунктов."]
[null,"2)                     Приложения 5.2 заполняется для территорий, не относящихся к городским населенным пунктам."]
[null,"3)                     В графе 2 указываются характеристики объекта электросетевого хозяйства/средства коммерческого учета электрической энергии (мощности), введенного в эксплуатацию (наименование мероприятия, выполненного ТСО в соответствии с выданными техническими условиями)."]
[null,"4)                     В графах 3, 6, 9 указывается уровень напряжения, соответствующий уровню напряжения объекта электросетевого хозяйства/средства коммерческого учета электрической энергии (мощности), введенного в эксплуатацию (наименование мероприятия, выполненного ТСО в соответствии с выданными техническими условиями)."]
[null,"5)                     В графах 4, 7, 10 указывается протяженность ЛЭП в километрах по трассе (без учета количества кабелей (проводов) в линии) с учётом обязательного заполнения трех знаков после запятой, а также количество пунктов секционирования, точек учета электрической энергии (мощности) в штуках."]
[null,"6)                     В графах 5, 8, 11 указывается размер присоединённой максимальной мощности энергопринимающего устройства заявителя согласно договору."]

{"sheet":"Прил. № 1.1 город","index":2,"n_rows":71,"n_cols":29,"rows_kept":71,"cut":false,"hidden":false,"merged":[[10,6,10,28],[11,6,11,28],[12,6,13,6],[12,13,12,16],[12,17,12,20],[12,21,12,24],[12,25,12,28],[12,7,13,12],[14,7,14,12],[22,7,22,12],[29,7,29,12],[64,6,64,28],[36,7,36,12],[43,7,43,12],[50,7,50,12],[57,7,57,12],[15,7,15,12]]}
[]
[]
[]
[]
[]
[]
[]
[]
[]
[null,null,null,null,null,null,null," "]
[null,null,null,null,null,null,"Приложение № 1.1\nк Методическим указаниям по определению\nразмера платы за технологическое\nприсоединение к электрическим сетям"]
["dd_hide/show","hide","range_name","address_title","address_svod",null,"\nРасходы на строительство введенных в эксплуатацию объектов электросетевого хозяйства для целей технологического присоединения и для целей реализации иных мероприятий инвестиционной программы территориальной сетевой организации, а также на обеспечение средствами\nкоммерческого учета электрической энергии (мощности)\n(заполняется для территорий городских населенных пунктов)"]
[null,null,null,null,null,null,"№ п/п","Объект электросетевого хозяйства/Средство коммерческого учета электрической энергии (мощности)",null,null,null,null,null,"Год ввода объекта 2018",null,null,null,"Год ввода объекта 2019",null,null,null,"Год ввода объекта 2020",null,null,null,"План*"]
[null,null,null,null,null,null,null,null,null,null,null,null,null,"уровень напряжения, кВ","протяженность\n(для линий электропередачи), км. / количество\n(для пунктов секционирования, точек учета ээ), шт.","максимальная мощность, кВт","расходы на строительство объекта/на обеспечение средствами коммерческого учета электрической энергии (мощности), тыс. руб.","уровень напряжения, кВ","протяженность\n(для линий электропередачи), км. / количество\n(для пунктов секционирования, точек учета ээ), шт.","максимальная мощность, кВт","расходы на строительство объекта/на обеспечение средствами коммерческого учета электрической энергии (мощности), тыс. руб.","уровень напряжения, кВ","протяженность\n(для линий электропередачи), км. / количество\n(для пунктов секционирования, точек учета ээ), шт.","максимальная мощность, кВт","расходы на строительство объекта/на обеспечение средствами коммерческого учета электрической энергии (мощности), тыс. руб.","уровень напряжения, кВ","протяженность\n(для линий электропередачи), км. / количество\n(для пунктов секционирования, точек учета ээ), шт.","максимальная мощность, кВт","расходы на строительство объекта/на обеспечение средствами коммерческого учета электрической энергии (мощности), тыс. руб."]
["ddShPr11City_rstart",null,null,null,null,null,1,2,null,null,null,null,null,3,4,5,6,7,8,9,10,11,12,13,14,15,16,17,18]
[null,null,null,null,null,null,"1.","СТРОИТЕЛЬСТВО ВОЗДУШНЫХ ЛИНИЙ ЭЛЕКТРОПЕРЕДАЧИ",null,null,null,null,null,null,{"$f":"SUM(O18:O20)","v":0},{"$f":"SUM(P18:P20)","v":0},{"$f":"SUM(Q18:Q20)","v":0},null,{"$f":"SUM(S18:S20)","v":0},{"$f":"SUM(T18:T20)","v":0},{"$f":"SUM(U18:U20)","v":0},null,{"$f":"SUM(W18:W20)","v":0},{"$f":"SUM(X18:X20)","v":0},{"$f":"SUM(Y18:Y20)","v":0},null,{"$f":"SUM(AA18:AA20)","v":0},{"$f":"SUM(AB18:AB20)","v":0},{"$f":"SUM(AC18:AC20)","v":0}]
[null,null,null,null,null,null,null,"тип опор: ","тип провода:","материал провода:","сечение провода:","количество цепей:","уровень напряжения:"]
[null,1]
[null,1,"VL",{"$f":"ROW($D$17)","v":17},null,"Удалить",{"$f":"$G$16 & (ROWS($G$18:G19)-2)+1&\".\"","v":"1.1."}]
[null,1,null,null,null,null,null,null,null,null,null,null,null," "]
[null,null,null,null,null,null,null,"Добавить"]
[null,1]
[null,null,null,null,null,null,"2.","СТРОИТЕЛЬСТВО КАБЕЛЬНЫХ ЛИНИЙ ЭЛЕКТРОПЕРЕДАЧИ",null,null,null,null,null,null,{"$f":"SUM(O25:O27)","v":0},{"$f":"SUM(P25:P27)","v":0},{"$f":"SUM(Q25:Q27)","v":0},null,{"$f":"SUM(S25:S27)","v":0},{"$f":"SUM(T25:T27)","v":0},{"$f":"SUM(U25:U27)","v":0},null,{"$f":"SUM(W25:W27)","v":0},{"$f":"SUM(X25:X27)","v":0},{"$f":"SUM(Y25:Y27)","v":0},null,{"$f":"SUM(AA25:AA27)","v":0},{"$f":"SUM(AB25:AB27)","v":0},{"$f":"SUM(AC25:AC27)","v":0}]
[null,null,null,null,null,null,null,"способ прокладки: ","количество жил:","тип изоляции:","сечение провода:","количество кабелей в траншее, канале, туннеле или\n коллекторе, на галерее или эстакаде, труб в скважине:","уровень напряжения:"]
[null,1]
[null,1,"KL",{"$f":"ROW($D$24)","v":24},null,"Удалить",{"$f":"$G$23 & (ROWS($G$25:G26)-2)+1&\".\"","v":"2.1."}]
[null,1]
[null,null,null,null,null,null,null,"Добавить"]
[null,1]
[null,null,null,null,null,null,"3.","СТРОИТЕЛЬСТВО ПУНКТОВ СЕКЦИОНИРОВАНИЯ (РЕКЛОУЗЕРОВ, РАСПРЕДЕЛИТЕЛЬНЫХ ПУНКТОВ, ПЕРЕКЛЮЧАТЕЛЬНЫХ ПУНКТОВ) ",null,null,null,null,null,null,{"$f":"SUM(O32:O34)","v":0},{"$f":"SUM(P32:P34)","v":0},{"$f":"SUM(Q32:Q34)","v":0},null,{"$f":"SUM(S32:S34)","v":0},{"$f":"SUM(T32:T34)","v":0},{"$f":"SUM(U32:U34)","v":0},null,{"$f":"SUM(W32:W34)","v":0},{"$f":"SUM(X32:X34)","v":0},{"$f":"SUM(Y32:Y34)","v":0},null,{"$f":"SUM(AA32:AA34)","v":0},{"$f":"SUM(AB32:AB34)","v":0},{"$f":"SUM(AC32:AC34)","v":0}]
[null,null,null,null,null,null,null,"пункт секционирования: ","номинальный ток:","количество ячеек в распределительном или переключательном пункте:","уровень напряжения:"]
[null,1]
[null,1,"PS",{"$f":"ROW($D$31)","v":31},null,"Удалить",{"$f":"$G$30 & (ROWS($G$32:G33)-2)+1&\".\"","v":"3.1."}]
[null,1]
[null,null,null,null,null,null,null,"Добавить"]
[null,1]
[null,null,null,null,null,null,"4.","СТРОИТЕЛЬСТВО ТРАНСФОРМАТОРНЫХ ПОДСТАНЦИЙ (ТП), ЗА ИСКЛЮЧЕНИЕМ РАСПРЕДЕЛИТЕЛЬНЫХ ТРАНСФОРМАТОРНЫХ ПОДСТАНЦИЙ (РТП), С УРОВНЕМ НАПРЯЖЕНИЯ ДО 35 КВ",null,null,null,null,null,null,{"$f":"SUM(O39:O41)","v":0},{"$f":"SUM(P39:P41)","v":0},{"$f":"SUM(Q39:Q41)","v":0},null,{"$f":"SUM(S39:S41)","v":0},{"$f":"SUM(T39:T41)","v":0},{"$f":"SUM(U39:U41)","v":0},null,{"$f":"SUM(W39:W41)","v":0},{"$f":"SUM(X39:X41)","v":0},{"$f":"SUM(Y39:Y41)","v":0},null,{"$f":"SUM(AA39:AA41)","v":0},{"$f":"SUM(AB39:AB41)","v":0},{"$f":"SUM(AC39:AC41)","v":0}]
[null,null,null,null,null,null,null,"уровень напряжения: ","количество трансформаторов:","трансформаторная мощность:","тип трансформаторной подстанции:"]
[null,1]
[null,1,"TS",{"$f":"ROW($D$38)","v":38},null,"Удалить",{"$f":"$G$37 & (ROWS($G$39:G40)-2)+1&\".\"","v":"4.1."}]
[null,1]
[null,null,null,null,null,null,null,"Добавить"]
[null,1]
[null,null,null,null,null,null,"5.","СТРОИТЕЛЬСТВО РАСПРЕДЕЛИТЕЛЬНЫХ ТРАНСФОРМАТОРНЫХ ПОДСТАНЦИЙ (РТП), С УРОВНЕМ НАПРЯЖЕНИЯ ДО 35 КВ",null,null,null,null,null,null,{"$f":"SUM(O46:O48)","v":0},{"$f":"SUM(P46:P48)","v":0},{"$f":"SUM(Q46:Q48)","v":0},null,{"$f":"SUM(S46:S48)","v":0},{"$f":"SUM(T46:T48)","v":0},{"$f":"SUM(U46:U48)","v":0},null,{"$f":"SUM(W46:W48)","v":0},{"$f":"SUM(X46:X48)","v":0},{"$f":"SUM(Y46:Y48)","v":0},null,{"$f":"SUM(AA46:AA48)","v":0},{"$f":"SUM(AB46:AB48)","v":0},{"$f":"SUM(AC46:AC48)","v":0}]
[null,null,null,null,null,null,null,"количество трансформаторов:","трансформаторная мощность:","уровень напряжения: "]
[null,1]
[null,1,"RTP",{"$f":"ROW($D$45)","v":45},null,"Удалить",{"$f":"$G$44 & (ROWS($G$46:G47)-2)+1&\".\"","v":"5.1."}]
[null,1]
[null,null,null,null,null,null,null,"Добавить"]
[null,1]
[null,null,null,null,null,null,"6.","СТРОИТЕЛЬСТВО ПОДСТАНЦИЙ УРОВНЕМ НАПРЯЖЕНИЯ 35 КВ И ВЫШЕ (ПС)",null,null,null,null,null,null,{"$f":"SUM(O53:O55)","v":0},{"$f":"SUM(P53:P55)","v":0},{"$f":"SUM(Q53:Q55)","v":0},null,{"$f":"SUM(S53:S55)","v":0},{"$f":"SUM(T53:T55)","v":0},{"$f":"SUM(U53:U55)","v":0},null,{"$f":"SUM(W53:W55)","v":0},{"$f":"SUM(X53:X55)","v":0},{"$f":"SUM(Y53:Y55)","v":0},null,{"$f":"SUM(AA53:AA55)","v":0},{"$f":"SUM(AB53:AB55)","v":0},{"$f":"SUM(AC53:AC55)","v":0}]
[null,null,null,null,null,null,null,"количество трансформаторов:","трансформаторная мощность:","уровень напряжения: "]
[null,1]
[null,1,"SP",{"$f":"ROW($D$52)","v":52},null,"Удалить",{"$f":"$G$51 & (ROWS($G$53:G54)-2)+1&\".\"","v":"6.1."}]
[null,1]
[null,null,null,null,null,null,null,"Добавить"]
[null,1,null,null,null,null,null,null,null," "]
[null,null,null,null,null,null,"7.","ОБЕСПЕЧЕНИЕ СРЕДСТВАМИ КОММЕРЧЕСКОГО УЧЕТА ЭЛЕКТРИЧЕСКОЙ ЭНЕРГИИ (МОЩНОСТИ)",null,null,null,null,null,null,{"$f":"SUM(O60:O62)","v":0},{"$f":"SUM(P60:P62)","v":0},0,null,0,0,0,null,0,0,0,null,0,0,0]
[null,null,null,null,null,null,null,"количество фаз:","тип включения:","уровень напряжения: "]
[null,1]
[null,1,"SKU",{"$f":"ROW($D$59)","v":59},null,"Удалить",{"$f":"$G$58 & (ROWS($G$60:G61)-2)+1&\".\"","v":"7.1."}]
[null,1]
[null,null,null,null,null,null,null,"Добавить"]
[null,1]
[null,null,null,null,null,null," * - случае если в субъекте Российской Федерации за 3 предыдущих года не осуществлялось строительство тех объектов электросетевого хозяйства, в отношении которых устанавливаются стандартизированные тарифные ставки либо не осуществлялось обеспечение средствами коммерческого учета электрической энергии (мощности), расчет ставок может производиться исходя из данных за два предыдущих года, в случае отсутствия данных за два года - за предыдущий год, а при отсутствии данных за три года - по планируемым расходам, определенным по сметам, выполненным с применением сметных нормативов.\n"]
["ddShPr11City_rstop",null,null,null,null,null,null,null,null,null,null," "]
[]
[]
[]
[]
[null,null,null,null,null,null,null,null," "]

{"sheet":"Прил. № 1.2 не город","index":3,"n_rows":66,"n_cols":29,"rows_kept":66,"cut":false,"hidden":false,"merged":[[15,7,15,12],[22,7,22,12],[29,7,29,12],[14,7,14,12],[10,6,10,28],[11,6,11,28],[12,6,13,6],[12,7,13,12],[12,13,12,16],[12,17,12,20],[12,21,12,24],[12,25,12,28],[36,7,36,12],[43,7,43,12],[50,7,50,12],[57,7,57,12],[64,6,64,28]]}
[]
[]
[]
[]
[]
[]
[]
[]
[]
[null,null,null,null,null,null,null," "]
[null,null,null,null,null,null,"Приложение № 1.2\nк Методическим указаниям по определению\nразмера платы за технологическое\nприсоединение к электрическим сетям"]
["dd_name","hide","range_name","address_title","address_svod",null,"\nРасходы на строительство введенных в эксплуатацию объектов электросетевого хозяйства для целей технологического присоединения и для целей реализации иных мероприятий инвестиционной программы территориальной сетевой организации, а также на обеспечение средствами\nкоммерческого учета электрической энергии (мощности)\n(заполняется для территорий, не относящихся к городским населенным пунктам)"]
[null,null,null,null,null,null,"№ п/п","Объект электросетевого хозяйства/Средство коммерческого учета электрической энергии (мощности)",null,null,null,null,null,"Год ввода объекта 2018",null,null,null,"Год ввода объекта 2019",null,null,null,"Год ввода объекта 2020",null,null,null,"План*"]
[null,null,null,null,null,null,null,null,null,null,null,null,null,"уровень напряжения, кВ","протяженность\n(для линий электропередачи), км. / количество\n(для пунктов секционирования, точек учета ээ), шт.","максимальная мощность, кВт","расходы на строительство объекта/на обеспечение средствами коммерческого учета электрической энергии (мощности), тыс. руб.","уровень напряжения, кВ","протяженность\n(для линий электропередачи), км. / количество\n(для пунктов секционирования, точек учета ээ), шт.","максимальная мощность, кВт","расходы на строительство объекта/на обеспечение средствами коммерческого учета электрической энергии (мощности), тыс. руб.","уровень напряжения, кВ","протяженность\n(для линий электропередачи), км. / количество\n(для пунктов секционирования, точек учета ээ), шт.","максимальная мощность, кВт","расходы на строительство объекта/на обеспечение средствами коммерческого учета электрической энергии (мощности), тыс. руб.","уровень напряжения, кВ","протяженность\n(для линий электропередачи), км. / количество\n(для пунктов секционирования, точек учета ээ), шт.","максимальная мощность, кВт","расходы на строительство объекта/на обеспечение средствами коммерческого учета электрической энергии (мощности), тыс. руб."]
["ddShPr12Cont_rstart",null,null,null,null,null,1,2,null,null,null,null,null,3,4,5,6,7,8,9,10,11,12,13,14,15,16,17,18]
[null,null,null,null,null,null,"1.","СТРОИТЕЛЬСТВО ВОЗДУШНЫХ ЛИНИЙ ЭЛЕКТРОПЕРЕДАЧИ",null,null,null,null,null,null,{"$f":"SUM(O18:O20)","v":0},{"$f":"SUM(P18:P20)","v":0},{"$f":"SUM(Q18:Q20)","v":0},null,{"$f":"SUM(S18:S20)","v":0},{"$f":"SUM(T18:T20)","v":0},{"$f":"SUM(U18:U20)","v":0},null,{"$f":"SUM(W18:W20)","v":0},{"$f":"SUM(X18:X20)","v":0},{"$f":"SUM(Y18:Y20)","v":0},null,{"$f":"SUM(AA18:AA20)","v":0},{"$f":"SUM(AB18:AB20)","v":0},{"$f":"SUM(AC18:AC20)","v":0}]
[null,null,null,null,null,null,null,"тип опор: ","тип провода:","материал провода:","сечение провода:","количество цепей:","уровень напряжения:"]
[null,1]
[null,1,"VL",{"$f":"ROW($D$17)","v":17},null,"Удалить",{"$f":"$G$16 & (ROWS($G$18:G19)-2)+1&\".\"","v":"1.1."}]
[null,1,null,null,null,null,null,null,null,null,null,null,null," "]
[null,null,null,null,null,null,null,"Добавить"]
[null,1]
[null,null,null,null,null,null,"2.","СТРОИТЕЛЬСТВО КАБЕЛЬНЫХ ЛИНИЙ ЭЛЕКТРОПЕРЕДАЧИ",null,null,null,null,null,null,{"$f":"SUM(O25:O27)","v":0},{"$f":"SUM(P25:P27)","v":0},{"$f":"SUM(Q25:Q27)","v":0},null,{"$f":"SUM(S25:S27)","v":0},{"$f":"SUM(T25:T27)","v":0},{"$f":"SUM(U25:U27)","v":0},null,{"$f":"SUM(W25:W27)","v":0},{"$f":"SUM(X25:X27)","v":0},{"$f":"SUM(Y25:Y27)","v":0},null,{"$f":"SUM(AA25:AA27)","v":0},{"$f":"SUM(AB25:AB27)","v":0},{"$f":"SUM(AC25:AC27)","v":0}]
[null,null,null,null,null,null,null,"способ прокладки: ","количество жил:","тип изоляции:","сечение провода:","количество кабелей в траншее, канале, туннеле или\n коллекторе, на галерее или эстакаде, труб в скважине:","уровень напряжения:"]
[null,1]
[null,1,"KL",{"$f":"ROW($D$24)","v":24},null,"Удалить",{"$f":"$G$23 & (ROWS($G$25:G26)-2)+1&\".\"","v":"2.1."}]
[null,1]
[null,null,null,null,null,null,null,"Добавить"]
[null,1]
[null,null,null,null,null,null,"3.","СТРОИТЕЛЬСТВО ПУНКТОВ СЕКЦИОНИРОВАНИЯ (РЕКЛОУЗЕРОВ, РАСПРЕДЕЛИТЕЛЬНЫХ ПУНКТОВ, ПЕРЕКЛЮЧАТЕЛЬНЫХ ПУНКТОВ) ",null,null,null,null,null,null,{"$f":"SUM(O32:O34)","v":0},{"$f":"SUM(P32:P34)","v":0},{"$f":"SUM(Q32:Q34)","v":0},null,{"$f":"SUM(S32:S34)","v":0},{"$f":"SUM(T32:T34)","v":0},{"$f":"SUM(U32:U34)","v":0},null,{"$f":"SUM(W32:W34)","v":0},{"$f":"SUM(X32:X34)","v":0},{"$f":"SUM(Y32:Y34)","v":0},null,{"$f":"SUM(AA32:AA34)","v":0},{"$f":"SUM(AB32:AB34)","v":0},{"$f":"SUM(AC32:AC34)","v":0}]
[null,null,null,null,null,null,null,"пункт секционирования: ","номинальный ток:",null,"уровень напряжения:"]
[null,1]
[null,1,"PS",{"$f":"ROW($D$31)","v":31},null,"Удалить",{"$f":"$G$30 & (ROWS($G$32:G33)-2)+1&\".\"","v":"3.1."}]
[null,1]
[null,null,null,null,null,null,null,"Добавить"]
[null,1]
[null,null,null,null,null,null,"4.","СТРОИТЕЛЬСТВО ТРАНСФОРМАТОРНЫХ ПОДСТАНЦИЙ (ТП), ЗА ИСКЛЮЧЕНИЕМ РАСПРЕДЕЛИТЕЛЬНЫХ ТРАНСФОРМАТОРНЫХ ПОДСТАНЦИЙ (РТП), С УРОВНЕМ НАПРЯЖЕНИЯ ДО 35 КВ",null,null,null,null,null,null,{"$f":"SUM(O39:O41)","v":0},{"$f":"SUM(P39:P41)","v":0},{"$f":"SUM(Q39:Q41)","v":0},null,{"$f":"SUM(S39:S41)","v":0},{"$f":"SUM(T39:T41)","v":0},{"$f":"SUM(U39:U41)","v":0},null,{"$f":"SUM(W39:W41)","v":0},{"$f":"SUM(X39:X41)","v":0},{"$f":"SUM(Y39:Y41)","v":0},null,{"$f":"SUM(AA39:AA41)","v":0},{"$f":"SUM(AB39:AB41)","v":0},{"$f":"SUM(AC39:AC41)","v":0}]
[null,null,null,null,null,null,null,"уровень напряжения: ","количество трансформаторов:","трансформаторная мощность:","тип трансформаторной подстанции:"]
[null,1]
[null,1,"TS",{"$f":"ROW($D$38)","v":38},null,"Удалить",{"$f":"$G$37 & (ROWS($G$39:G40)-2)+1&\".\"","v":"4.1."}]
[null,1]
[null,null,null,null,null,null,null,"Добавить"]
[null,1]
[null,null,null,null,null,null,"5.","СТРОИТЕЛЬСТВО РАСПРЕДЕЛИТЕЛЬНЫХ ТРАНСФОРМАТОРНЫХ ПОДСТАНЦИЙ (РТП), С УРОВНЕМ НАПРЯЖЕНИЯ ДО 35 КВ",null,null,null,null,null,null,{"$f":"SUM(O46:O48)","v":0},{"$f":"SUM(P46:P48)","v":0},{"$f":"SUM(Q46:Q48)","v":0},null,{"$f":"SUM(S46:S48)","v":0},{"$f":"SUM(T46:T48)","v":0},{"$f":"SUM(U46:U48)","v":0},null,{"$f":"SUM(W46:W48)","v":0},{"$f":"SUM(X46:X48)","v":0},{"$f":"SUM(Y46:Y48)","v":0},null,{"$f":"SUM(AA46:AA48)","v":0},{"$f":"SUM(AB46:AB48)","v":0},{"$f":"SUM(AC46:AC48)","v":0}]
[null,null,null,null,null,null,null,"количество трансформаторов:","трансформаторная мощность:","уровень напряжения: "]
[null,1]
[null,1,"RTP",{"$f":"ROW($D$45)","v":45},null,"Удалить",{"$f":"$G$44 & (ROWS($G$46:G47)-2)+1&\".\"","v":"5.1."}]
[null,1]
[null,null,null,null,null,null,null,"Добавить"]
[null,1]
[null,null,null,null,null,null,"6.","СТРОИТЕЛЬСТВО ПОДСТАНЦИЙ УРОВНЕМ НАПРЯЖЕНИЯ 35 КВ И ВЫШЕ (ПС)",null,null,null,null,null,null,{"$f":"SUM(O53:O55)","v":0},{"$f":"SUM(P53:P55)","v":0},{"$f":"SUM(Q53:Q55)","v":0},null,{"$f":"SUM(S53:S55)","v":0},{"$f":"SUM(T53:T55)","v":0},{"$f":"SUM(U53:U55)","v":0},null,{"$f":"SUM(W53:W55)","v":0},{"$f":"SUM(X53:X55)","v":0},{"$f":"SUM(Y53:Y55)","v":0},null,{"$f":"SUM(AA53:AA55)","v":0},{"$f":"SUM(AB53:AB55)","v":0},{"$f":"SUM(AC53:AC55)","v":0}]
[null,null,null,null,null,null,null,"количество трансформаторов:","трансформаторная мощность:","уровень напряжения: "]
[null,1]
[null,1,"SP",{"$f":"ROW($D$52)","v":52},null,"Удалить",{"$f":"$G$51 & (ROWS($G$53:G54)-2)+1&\".\"","v":"6.1."}]
[null,1]
[null,null,null,null,null,null,null,"Добавить"]
[null,1,null,null,null,null,null,null,null," "]
[null,null,null,null,null,null,"7.","ОБЕСПЕЧЕНИЕ СРЕДСТВАМИ КОММЕРЧЕСКОГО УЧЕТА ЭЛЕКТРИЧЕСКОЙ ЭНЕРГИИ (МОЩНОСТИ)",null,null,null,null,null,null,{"$f":"SUM(O60:O62)","v":0},{"$f":"SUM(P60:P62)","v":0},0,null,0,0,0,null,0,0,0,null,0,0,0]
[null,null,null,null,null,null,null,"количество фаз:","тип включения:","уровень напряжения: "]
[null,1]
[null,1,"SKU",{"$f":"ROW($D$59)","v":59},null,"Удалить",{"$f":"$G$58 & (ROWS($G$60:G61)-2)+1&\".\"","v":"7.1."}]
[null,1]
[null,null,null,null,null,null,null,"Добавить"]
[null,1]
[null,null,null,null,null,null," * - случае если в субъекте Российской Федерации за 3 предыдущих года не осуществлялось строительство тех объектов электросетевого хозяйства, в отношении которых устанавливаются стандартизированные тарифные ставки либо не осуществлялось обеспечение средствами коммерческого учета электрической энергии (мощности), расчет ставок может производиться исходя из данных за два предыдущих года, в случае отсутствия данных за два года - за предыдущий год, а при отсутствии данных за три года - по планируемым расходам, определенным по сметам, выполненным с применением сметных нормативов.\n"]
["ddShPr12Cont_rstop",null,null,null,null,null,null,null,null,null,null," "]

{"sheet":"Прил. № 2.1 (год-3)","index":4,"n_rows":13,"n_cols":21,"rows_kept":13,"cut":false,"hidden":false,"merged":[[0,0,0,20],[1,0,1,20],[2,0,6,0],[2,1,6,1],[5,2,5,3],[5,4,5,5],[2,2,2,20],[4,12,4,15],[5,17,5,18],[5,19,5,20],[3,17,4,20],[5,12,5,13],[4,2,4,6],[5,6,6,6],[5,11,6,11],[5,14,5,15],[4,7,4,11],[3,2,3,16],[5,7,5,8],[5,9,5,10],[4,16,6,16]]}
["Приложение № 2.1\nк Методическим указаниям по определению\nразмера платы за технологическое\nприсоединение к электрическим сетям"]
[{"$f":"\"Расходы на выполнение мероприятий по технологическому присоединению, предусмотренных пунктами 'а' и 'в' пункта 16 Методических указаний за \" &IF(Титульный!C12=\"\",\"--- выберите период на листе Титульный ---\",(Титульный!C12-3)) & \" год\"","v":"Расходы на выполнение мероприятий по технологическому присоединению, предусмотренных пунктами 'а' и 'в' пункта 16 Методических указаний за 2018 год"}]
["№ п/п","Наименование мероприятий",{"$f":"\"Год формирования расходов (согласно учетной политике сетевой организации) за \" &IF(Титульный!C12=\"\",\"--- выберите период на листе Титульный ---\",(Титульный!C12-3)) & \" год\"","v":"Год формирования расходов (согласно учетной политике сетевой организации) за 2018 год"}]
[null,null,"Информация для расчета стандартизированной тарифной ставки С1 с учетом дифференциации по уровням напряжения и максимальной мощности",null,null,null,null,null,null,null,null,null,null,null,null,null,null,"расходы на одно присоединение (руб. на 1 ТП)"]
[null,null,"расходы согласно Приложению № 3 по каждому мероприятию (тыс. руб.) ",null,null,null,null,"количество технологических присоединений (шт.)",null,null,null,null,"объем максимальной мощности (кВт)",null,null,null,"Итого расходы на одно присоединение \n(тыс.руб. на 1 ТП)\n (гр.7/ гр.12)"]
[null,null,"до 20 кВ включительно",null,"свыше 20 кВ ",null,"Итого\n(гр.3+гр.4+гр.5\n+гр.6)","до 20 кВ включительно",null,"свыше 20 кВ ",null,"Итого (гр.8+гр.9+гр.10+гр.11)","до 20 кВ включительно",null,"свыше 20 кВ ",null,null,"до 35 кВ",null,"свыше 35 кВ включительно"]
[null,null,"до 670 кВт","свыше 670 кВт включительно","до 670 кВт","свыше 670 кВт включительно",null,"до 670 кВт","свыше 670 кВт включительно","до 670 кВт","свыше 670 кВт включительно",null,"до 670 кВт","свыше 670 кВт включительно","до 670 кВт","свыше 670 кВт включительно",null,"до 8900 кВт","свыше 8900 кВт включительно","до 8900 кВт","свыше 8900 кВт включительно"]
[1,2,3,4,5,6,7,8,9,10,11,12,13,14,15,16,17,15,16,17,18]
[1,"Подготовка и выдача сетевой организацией технических условий заявителю",{"$f":"'Прил. № 3.1 (''а'' п.16)'!E5","v":21.287999999999997},null,null,null,{"$f":"C9+D9+E9+F9","v":21.287999999999997},3,null,null,null,{"$f":"H9+I9+J9+K9","v":3},108,null,null,null,{"$f":"IF(L9=0,0, G9/L9)","v":7.0959999999999992},{"$f":"IF(H9=0,0,C9/H9)","v":7.0959999999999992},0,0,0]
[2,"Проверка сетевой организацией выполнения заявителем технических условий","-","-","-","-","-","-","-","-","-","-","-","-","-","-","-",{"$error":"#VALUE!"},{"$error":"#VALUE!"},{"$error":"#VALUE!"},{"$error":"#VALUE!"}]
[3,"Итого",{"$f":"C9+C10","v":{"$error":"#VALUE!"}},{"$f":"D9+D10","v":{"$error":"#VALUE!"}},{"$error":"#VALUE!"},{"$error":"#VALUE!"},null,{"$error":"#VALUE!"},{"$error":"#VALUE!"},{"$error":"#VALUE!"},{"$error":"#VALUE!"},null,{"$error":"#VALUE!"},{"$error":"#VALUE!"},{"$error":"#VALUE!"},{"$error":"#VALUE!"},null,{"$error":"#VALUE!"},{"$error":"#VALUE!"},{"$error":"#VALUE!"},{"$error":"#VALUE!"}]
["2.1","Выдача сетевой организацией акта об осуществлении технологического присоединения заявителям, указанным в пунктах 12(1) и 14 Правил технологического присоединения, кроме случаев, если технологическое присоединение энергопринимающих устройств таких заявителей осуществляется на уровне напряжения выше 0,4 кВ",{"$f":"'Прил. № 3.2 (''в'' п.16)'!E5","v":28.771999999999998},null,null,null,{"$f":"C12+D12+E12+F12","v":28.771999999999998},3,null,null,null,{"$f":"H12+I12+J12+K12","v":3},108,null,null,null,{"$f":"IF(L12=0,0, G12/L12)","v":9.5906666666666656},{"$f":"IF(H12=0,0,C12/H12)","v":9.5906666666666656},0,0,0]
["2.2","Проверка сетевой организацией выполнения технических условий заявителями (за исключением заявителей, указанных в пункте 2.1 таблицы)",null,null,null,null,{"$f":"C13+D13+E13+F13","v":0},null,null,null,null,{"$f":"H13+I13+J13+K13","v":0},null,null,null,null,{"$f":"IF(L13=0,0, G13/L13)","v":0},0,0,0,0]

{"sheet":"Прил. № 2.2 (год-2)","index":5,"n_rows":13,"n_cols":21,"rows_kept":13,"cut":false,"hidden":false,"merged":[[0,0,0,20],[1,0,1,20],[2,0,6,0],[2,1,6,1],[2,2,2,20],[5,9,5,10],[4,7,4,11],[5,17,5,18],[5,19,5,20],[3,17,4,20],[4,2,4,6],[4,16,6,16],[5,2,5,3],[5,4,5,5],[5,6,6,6],[3,2,3,16],[5,7,5,8],[4,12,4,15],[5,11,6,11],[5,12,5,13],[5,14,5,15]]}
["Приложение № 2.2\nк Методическим указаниям по определению\nразмера платы за технологическое\nприсоединение к электрическим сетям"]
[{"$f":"\"Расходы на выполнение мероприятий по технологическому присоединению, предусмотренных пунктами 'а' и 'в' пункта 16 Методических указаний за \" &IF(Титульный!C12=\"\",\"--- выберите период на листе Титульный ---\",(Титульный!C12-2)) & \" год\"","v":"Расходы на выполнение мероприятий по технологическому присоединению, предусмотренных пунктами 'а' и 'в' пункта 16 Методических указаний за 2019 год"}]
["№ п/п","Наименование мероприятий",{"$f":"\"Год формирования расходов (согласно учетной политике сетевой организации) за \" &IF(Титульный!C12=\"\",\"--- выберите период на листе Титульный ---\",(Титульный!C12-2)) & \" год\"","v":"Год формирования расходов (согласно учетной политике сетевой организации) за 2019 год"}]
[null,null,"Информация для расчета стандартизированной тарифной ставки С1 с учетом дифференциации по уровням напряжения и максимальной мощности",null,null,null,null,null,null,null,null,null,null,null,null,null,null,"расходы на одно присоединение (руб. на 1 ТП)"]
[null,null,"расходы согласно Приложению № 3 по каждому мероприятию (тыс. руб.) ",null,null,null,null,"количество технологических присоединений (шт.)",null,null,null,null,"объем максимальной мощности (кВт)",null,null,null,"Итого расходы на одно присоединение \n(тыс.руб. на 1 ТП)\n (гр.7/ гр.12)"]
[null,null,"до 20 кВ включительно",null,"свыше 20 кВ ",null,"Итого\n(гр.3+гр.4+гр.5\n+гр.6)","до 20 кВ включительно",null,"свыше 20 кВ ",null,"Итого (гр.8+гр.9+гр.10+гр.11)","до 20 кВ включительно",null,"свыше 20 кВ ",null,null,"до 35 кВ",null,"свыше 35 кВ включительно"]
[null,null,"до 670 кВт","свыше 670 кВт включительно","до 670 кВт","свыше 670 кВт включительно",null,"до 670 кВт","свыше 670 кВт включительно","до 670 кВт","свыше 670 кВт включительно",null,"до 670 кВт","свыше 670 кВт включительно","до 670 кВт","свыше 670 кВт включительно",null,"до 8900 кВт","свыше 8900 кВт включительно","до 8900 кВт","свыше 8900 кВт включительно"]
[1,2,3,4,5,6,7,8,9,10,11,12,13,14,15,16,17,15,16,17,18]
[1,"Подготовка и выдача сетевой организацией технических условий заявителю",24.506969999999999,8.1689900000000009,null,null,{"$f":"C9+D9+E9+F9","v":32.675960000000003},3,1,null,null,{"$f":"H9+I9+J9+K9","v":4},36,900,null,null,{"$f":"IF(L9=0,0, G9/L9)","v":8.1689900000000009},{"$f":"IF(H9=0,0,C9/H9)","v":8.1689899999999991},8.1689900000000009,0,0]
[2,"Проверка сетевой организацией выполнения заявителем технических условий","-","-","-","-","-","-","-","-","-","-","-","-","-","-","-",{"$error":"#VALUE!"},{"$error":"#VALUE!"},{"$error":"#VALUE!"},{"$error":"#VALUE!"}]
[3,"Итого",{"$f":"C9+C10","v":{"$error":"#VALUE!"}},{"$f":"D9+D10","v":{"$error":"#VALUE!"}},{"$error":"#VALUE!"},{"$error":"#VALUE!"},null,{"$error":"#VALUE!"},{"$error":"#VALUE!"},{"$error":"#VALUE!"},{"$error":"#VALUE!"},null,{"$error":"#VALUE!"},{"$error":"#VALUE!"},{"$error":"#VALUE!"},{"$error":"#VALUE!"},null,{"$error":"#VALUE!"},{"$error":"#VALUE!"},{"$error":"#VALUE!"},{"$error":"#VALUE!"}]
["2.1","Выдача сетевой организацией акта об осуществлении технологического присоединения заявителям, указанным в пунктах 12(1) и 14 Правил технологического присоединения, кроме случаев, если технологическое присоединение энергопринимающих устройств таких заявителей осуществляется на уровне напряжения выше 0,4 кВ",29.827470000000002,null,null,null,{"$f":"C12+D12+E12+F12","v":29.827470000000002},3,null,null,null,{"$f":"H12+I12+J12+K12","v":3},36,null,null,null,{"$f":"IF(L12=0,0, G12/L12)","v":9.9424900000000012},{"$f":"IF(H12=0,0,C12/H12)","v":9.9424900000000012},0,0,0]
["2.2","Проверка сетевой организацией выполнения технических условий заявителями (за исключением заявителей, указанных в пункте 2.1 таблицы)",null,12.7361,null,null,{"$f":"C13+D13+E13+F13","v":12.7361},null,1,null,null,{"$f":"H13+I13+J13+K13","v":1},null,900,null,null,{"$f":"IF(L13=0,0, G13/L13)","v":12.7361},0,12.7361,0,0]

{"sheet":"Прил. № 2.3 (год-1)","index":6,"n_rows":13,"n_cols":21,"rows_kept":13,"cut":false,"hidden":false,"merged":[[0,0,0,20],[1,0,1,20],[2,0,6,0],[2,1,6,1],[2,2,2,20],[5,9,5,10],[4,7,4,11],[5,17,5,18],[5,19,5,20],[3,17,4,20],[4,2,4,6],[4,16,6,16],[5,2,5,3],[5,4,5,5],[5,6,6,6],[3,2,3,16],[5,7,5,8],[4,12,4,15],[5,11,6,11],[5,12,5,13],[5,14,5,15]]}
["Приложение № 2.3\nк Методическим указаниям по определению\nразмера платы за технологическое\nприсоединение к электрическим сетям"]
[{"$f":"\"Расходы на выполнение мероприятий по технологическому присоединению, предусмотренных пунктами 'а' и 'в' пункта 16 Методических указаний за \" &IF(Титульный!C12=\"\",\"--- выберите период на листе Титульный ---\",(Титульный!C12-1)) & \" год\"","v":"Расходы на выполнение мероприятий по технологическому присоединению, предусмотренных пунктами 'а' и 'в' пункта 16 Методических указаний за 2020 год"}]
["№ п/п","Наименование мероприятий",{"$f":"\"Год формирования расходов (согласно учетной политике сетевой организации) за \" &IF(Титульный!C12=\"\",\"--- выберите период на листе Титульный ---\",(Титульный!C12-1)) & \" год\"","v":"Год формирования расходов (согласно учетной политике сетевой организации) за 2020 год"}]
[null,null,"Информация для расчета стандартизированной тарифной ставки С1 с учетом дифференциации по уровням напряжения и максимальной мощности",null,null,null,null,null,null,null,null,null,null,null,null,null,null,"расходы на одно присоединение (руб. на 1 ТП)"]
[null,null,"расходы согласно Приложению № 3 по каждому мероприятию (тыс. руб.) ",null,null,null,null,"количество технологических присоединений (шт.)",null,null,null,null,"объем максимальной мощности (кВт)",null,null,null,"Итого расходы на одно присоединение \n(тыс.руб. на 1 ТП)\n (гр.7/ гр.12)"]
[null,null,"до 20 кВ включительно",null,"свыше 20 кВ ",null,"Итого\n(гр.3+гр.4+гр.5\n+гр.6)","до 20 кВ включительно",null,"свыше 20 кВ ",null,"Итого (гр.8+гр.9+гр.10+гр.11)","до 20 кВ включительно",null,"свыше 20 кВ ",null,null,"до 35 кВ",null,"свыше 35 кВ включительно"]
[null,null,"до 670 кВт","свыше 670 кВт включительно","до 670 кВт","свыше 670 кВт включительно",null,"до 670 кВт","свыше 670 кВт включительно","до 670 кВт","свыше 670 кВт включительно",null,"до 670 кВт","свыше 670 кВт включительно","до 670 кВт","свыше 670 кВт включительно",null,"до 8900 кВт","свыше 8900 кВт включительно","до 8900 кВт","свыше 8900 кВт включительно"]
[1,2,3,4,5,6,7,8,9,10,11,12,13,14,15,16,17,15,16,17,18]
[1,"Подготовка и выдача сетевой организацией технических условий заявителю",null,null,null,null,{"$f":"C9+D9+E9+F9","v":0},null,null,null,null,{"$f":"H9+I9+J9+K9","v":0},null,null,null,null,{"$f":"IF(L9=0,0, G9/L9)","v":0},{"$f":"IF(H9=0,0,C9/H9)","v":0},0,0,0]
[2,"Проверка сетевой организацией выполнения заявителем технических условий","-","-","-","-","-","-","-","-","-","-","-","-","-","-","-",{"$error":"#VALUE!"},{"$error":"#VALUE!"},{"$error":"#VALUE!"},{"$error":"#VALUE!"}]
[3,"Итого",{"$f":"C9+C10","v":{"$error":"#VALUE!"}},{"$f":"D9+D10","v":{"$error":"#VALUE!"}},{"$error":"#VALUE!"},{"$error":"#VALUE!"},null,{"$error":"#VALUE!"},{"$error":"#VALUE!"},{"$error":"#VALUE!"},{"$error":"#VALUE!"},null,{"$error":"#VALUE!"},{"$error":"#VALUE!"},{"$error":"#VALUE!"},{"$error":"#VALUE!"},null,{"$error":"#VALUE!"},{"$error":"#VALUE!"},{"$error":"#VALUE!"},{"$error":"#VALUE!"}]
["2.1","Выдача сетевой организацией акта об осуществлении технологического присоединения заявителям, указанным в пунктах 12(1) и 14 Правил технологического присоединения, кроме случаев, если технологическое присоединение энергопринимающих устройств таких заявителей осуществляется на уровне напряжения выше 0,4 кВ",null,null,null,null,{"$f":"C12+D12+E12+F12","v":0},null,null,null,null,{"$f":"H12+I12+J12+K12","v":0},null,null,null,null,{"$f":"IF(L12=0,0, G12/L12)","v":0},{"$f":"IF(H12=0,0,C12/H12)","v":0},0,0,0]
["2.2","Проверка сетевой организацией выполнения технических условий заявителями (за исключением заявителей, указанных в пункте 2.1 таблицы)",null,null,null,null,{"$f":"C13+D13+E13+F13","v":0},null,null,null,null,{"$f":"H13+I13+J13+K13","v":0},null,null,null,null,{"$f":"IF(L13=0,0, G13/L13)","v":0},0,0,0,0]

{"sheet":"Прил. № 3.1 ('а' п.16)","index":7,"n_rows":23,"n_cols":6,"rows_kept":23,"cut":false,"hidden":false,"merged":[[0,0,0,5],[1,0,1,5]]}
["Приложение № 3.1\nк Методическим указаниям по определению\nразмера платы за технологическое\nприсоединение к электрическим сетям"]
[{"$f":"\"Расчет фактических расходов на выполнение мероприятий  по технологическому присоединению, связанных с подготовкой и выдачей сетевой организацией технических условий заявителю, предусмотренных подпунктом 'а' пункта 16 Методических указаний за \" &IF(Титульный!C12=\"\",\"--- выберите период на листе Титульный ---\",(Титульный!C12-3) & \"–\" & (Титульный!C12-1) ) & \" годы\"","v":"Расчет фактических расходов на выполнение мероприятий  по технологическому присоединению, связанных с подготовкой и выдачей сетевой организацией технических условий заявителю, предусмотренных подпунктом 'а' пункта 16 Методических указаний за 2018–2020 годы"}]
["№ п/п","Показатели",{"$f":"CONCATENATE(\"Данные за \" &IF(Титульный!C12=\"\",\"--- выберите период на листе Титульный ---\",(Титульный!C12-1)) & \" год,\", CHAR(10),\" тыс. рублей\")","v":"Данные за 2020 год,\n тыс. рублей"},{"$f":"CONCATENATE(\"Данные за \" &IF(Титульный!C12=\"\",\"--- выберите период на листе Титульный ---\",(Титульный!C12-2)) & \" год,\", CHAR(10),\" тыс. рублей\")","v":"Данные за 2019 год,\n тыс. рублей"},{"$f":"CONCATENATE(\"Данные за \" &IF(Титульный!C12=\"\",\"--- выберите период на листе Титульный ---\",(Титульный!C12-3)) & \" год,\", CHAR(10),\" тыс. рублей\")","v":"Данные за 2018 год,\n тыс. рублей"},"Итого,\nтыс. рублей"]
[1,2,3,4,5,6]
[1,"Расходы по выполнению мероприятий по технологическому присоединению, всего",{"$f":"C6+C7+C8+C9+C10+C19","v":0},{"$f":"D6+D7+D8+D9+D10+D19","v":32.676000000000002},{"$f":"E6+E7+E8+E9+E10+E19","v":21.287999999999997},{"$f":"C5+D5+E5","v":53.963999999999999}]
["1.1","Вспомогательные материалы",null,null,null,{"$f":"C6+D6+E6","v":0}]
["1.2","Энергия на хозяйственные нужды",null,null,null,0]
["1.3","Оплата труда ППП",null,22.102,14.398999999999999,36.500999999999998]
["1.4","Отчисления на страховые взносы",null,7.0730000000000004,4.6079999999999997,11.681000000000001]
["1.5","Прочие расходы, всего, в том числе:",{"$f":"SUM(C11:C13)","v":0},{"$f":"SUM(D11:D13)","v":3.5009999999999999},{"$f":"SUM(E11:E13)","v":2.2810000000000001},5.782]
["1.5.1","работы и услуги производственного характера",null,null,null,0]
["1.5.2","налоги и сборы, уменьшающие налогооблагаемую базу на прибыль организаций, всего",null,null,null,0]
["1.5.3","работы и услуги непроизводственного характера, в том числе:",{"$f":"SUM(C14:C18)","v":0},{"$f":"SUM(D14:D18)","v":3.5009999999999999},{"$f":"SUM(E14:E18)","v":2.2810000000000001},5.782]
["1.5.3.1","услуги связи",null,null,null,0]
["1.5.3.2","расходы на охрану и пожарную безопасность",null,null,null,0]
["1.5.3.3","расходы на информационное обслуживание, иные услуги, связанные с деятельностью по технологическому присоединению",null,null,null,0]
["1.5.3.4","плата за аренду имущества",null,null,null,0]
["1.5.3.5","другие прочие расходы, связанные с производством и реализацией",null,3.5009999999999999,2.2810000000000001,5.782]
["1.6","Внереализованные расходы, всего",{"$f":"SUM(C20:C23)","v":0},{"$f":"SUM(D20:D23)","v":0},{"$f":"SUM(E20:E23)","v":0},0]
["1.6.1","расходы на услуги банков",null,null,null,0]
["1.6.2","% за пользование кредитом",null,null,null,0]
["1.6.3","прочие обоснованные расходы",null,null,null,0]
["1.6.4","денежные выплаты социального характера ( по Коллективному договору)",null,null,null,0]

{"sheet":"Прил. № 3.2 ('в' п.16)","index":8,"n_rows":23,"n_cols":6,"rows_kept":23,"cut":false,"hidden":false,"merged":[[0,0,0,5],[1,0,1,5]]}
["Приложение № 3.2\nк Методическим указаниям по определению\nразмера платы за технологическое\nприсоединение к электрическим сетям"]
[{"$f":"\"Расчет фактических расходов на выполнение мероприятий  по технологическому присоединению, связанных с проверкой сетевой организацией выполнения заявителем технических условий, предусмотренных подпунктом 'в' пункта 16 Методических указаний за \" &IF(Титульный!C12=\"\",\"--- выберите период на листе Титульный ---\",(Титульный!C12-3) & \"–\" & (Титульный!C12-1) ) & \" годы\"","v":"Расчет фактических расходов на выполнение мероприятий  по технологическому присоединению, связанных с проверкой сетевой организацией выполнения заявителем технических условий, предусмотренных подпунктом 'в' пункта 16 Методических указаний за 2018–2020 годы"}]
["№ п/п","Показатели",{"$f":"CONCATENATE(\"Данные за \" &IF(Титульный!C12=\"\",\"--- выберите период на листе Титульный ---\",(Титульный!C12-1)) & \" год,\", CHAR(10),\" тыс. рублей\")","v":"Данные за 2020 год,\n тыс. рублей"},{"$f":"CONCATENATE(\"Данные за \" &IF(Титульный!C12=\"\",\"--- выберите период на листе Титульный ---\",(Титульный!C12-2)) & \" год,\", CHAR(10),\" тыс. рублей\")","v":"Данные за 2019 год,\n тыс. рублей"},{"$f":"CONCATENATE(\"Данные за \" &IF(Титульный!C12=\"\",\"--- выберите период на листе Титульный ---\",(Титульный!C12-3)) & \" год,\", CHAR(10),\" тыс. рублей\")","v":"Данные за 2018 год,\n тыс. рублей"},"Итого,\nтыс. рублей"]
[1,2,3,4,5,6]
[1,"Расходы по выполнению мероприятий по технологическому присоединению, всего",{"$f":"C6+C7+C8+C9+C10+C19","v":0},{"$f":"D6+D7+D8+D9+D10+D19","v":42.564},{"$f":"E6+E7+E8+E9+E10+E19","v":28.771999999999998},{"$f":"C5+D5+E5","v":71.335999999999999}]
["1.1","Вспомогательные материалы",null,null,null,{"$f":"C6+D6+E6","v":0}]
["1.2","Энергия на хозяйственные нужды",null,null,null,0]
["1.3","Оплата труда ППП",null,25.283000000000001,17.212,42.495000000000005]
["1.4","Отчисления на страховые взносы",null,8.0909999999999993,5.508,13.599]
["1.5","Прочие расходы, всего, в том числе:",{"$f":"SUM(C11:C13)","v":0},{"$f":"SUM(D11:D13)","v":9.19},{"$f":"SUM(E11:E13)","v":6.0519999999999996},15.241999999999999]
["1.5.1","работы и услуги производственного характера",null,null,null,0]
["1.5.2","налоги и сборы, уменьшающие налогооблагаемую базу на прибыль организаций, всего",null,null,null,0]
["1.5.3","работы и услуги непроизводственного характера, в том числе:",{"$f":"SUM(C14:C18)","v":0},{"$f":"SUM(D14:D18)","v":9.19},{"$f":"SUM(E14:E18)","v":6.0519999999999996},15.241999999999999]
["1.5.3.1","услуги связи",null,null,null,0]
["1.5.3.2","расходы на охрану и пожарную безопасность",null,null,null,0]
["1.5.3.3","расходы на информационное обслуживание, иные услуги, связанные с деятельностью по технологическому присоединению",null,null,null,0]
["1.5.3.4","плата за аренду имущества",null,null,null,0]
["1.5.3.5","другие прочие расходы, связанные с производством и реализацией",null,9.19,6.0519999999999996,15.241999999999999]
["1.6","Внереализованные расходы, всего",{"$f":"SUM(C20:C23)","v":0},{"$f":"SUM(D20:D23)","v":0},{"$f":"SUM(E20:E23)","v":0},0]
["1.6.1","расходы на услуги банков",null,null,null,0]
["1.6.2","% за пользование кредитом",null,null,null,0]
["1.6.3","прочие обоснованные расходы",null,null,null,0]
["1.6.4","денежные выплаты социального характера ( по Коллективному договору)",null,null,null,0]

{"sheet":"Прил. № 5.1 город","index":9,"n_rows":44,"n_cols":22,"rows_kept":44,"cut":false,"hidden":false,"merged":[[36,7,36,12],[12,16,12,18],[12,19,12,21],[10,17,10,21],[11,6,11,19],[22,7,22,12],[12,13,12,15],[12,7,13,12],[14,7,14,12],[15,7,15,12],[29,7,29,12],[10,6,10,10],[12,6,13,6]]}
[]
[]
[]
[]
[]
[]
[]
[]
[]
[]
[null,null,null,null,null,null,null,null,null,null,null,null,null,null,null,null,null,"Приложение № 5.1\nк Методическим указаниям по определению\nразмера платы за технологическое\nприсоединение к электрическим сетям"]
["dd_hide/show","hide","range_name","address_title","address_svod",null,"Сведения о строительстве линий электропередачи, пунктов секционирования, а также об обеспечении средствами\nкоммерческого учета электрической энергии (мощности)  при технологическом присоединении энергопринимающих устройств максимальной мощностью менее 670 кВт и на уровне напряжения 20 кВ и менее\n(заполняется для территорий городских населенных пунктов)"]
[null,null,null,null,null,null,"№ п/п","Объект электросетевого хозяйства/Средство коммерческого учета электрической энергии (мощности)",null,null,null,null,null,"Год ввода объекта 2018",null,null,"Год ввода объекта 2019",null,null,"Год ввода объекта 2020"]
[null,null,null,null,null,null,null,null,null,null,null,null,null,"уровень напряжения, кВ","протяженность\n(для линий электропередачи), км. / количество\n(для пунктов секционирования, точек учета ээ), шт.","присоединенная максимальная мощность (менее 670 кВт), кВт","уровень напряжения, кВ","протяженность\n(для линий электропередачи), км. / количество\n(для пунктов секционирования, точек учета ээ), шт.","присоединенная максимальная мощность (менее 670 кВт), кВт","уровень напряжения, кВ","протяженность\n(для линий электропередачи), км. / количество\n(для пунктов секционирования, точек учета ээ), шт.","присоединенная максимальная мощность (менее 670 кВт), кВт"]
["ddShPr51_rstart",null,null,null,null,null,1,2,null,null,null,null,null,3,4,5,6,7,8,9,10,11]
[null,null,null,null,null,null,"1.","СТРОИТЕЛЬСТВО ВОЗДУШНЫХ ЛИНИЙ ЭЛЕКТРОПЕРЕДАЧИ",null,null,null,null,null,null,{"$f":"SUM(O18:O20)","v":0},{"$f":"SUM(P18:P20)","v":0},null,{"$f":"SUM(R18:R20)","v":0},{"$f":"SUM(S18:S20)","v":0},null,{"$f":"SUM(U18:U20)","v":0},{"$f":"SUM(V18:V20)","v":0}]
[null,null,null,null,null,null,null,"тип опор: ","тип провода:","материал провода:","сечение провода:","количество цепей:","уровень напряжения:"]
[null,1]
[null,1,"VL",{"$f":"ROW($D$17)","v":17},null,"Удалить",{"$f":"$G$16 & (ROWS($G$18:G19)-2)+1&\".\"","v":"1.1."}]
[null,1]
[null,null,null,null,null,null,null,"Добавить"]
[null,1]
[null,null,null,null,null,null,"2.","СТРОИТЕЛЬСТВО КАБЕЛЬНЫХ ЛИНИЙ ЭЛЕКТРОПЕРЕДАЧИ",null,null,null,null,null,null,{"$f":"SUM(O25:O27)","v":0},{"$f":"SUM(P25:P27)","v":0},null,{"$f":"SUM(R25:R27)","v":0},{"$f":"SUM(S25:S27)","v":0},null,{"$f":"SUM(U25:U27)","v":0},{"$f":"SUM(V25:V27)","v":0}]
[null,null,null,null,null,null,null,"способ прокладки: ","количество жил:","тип изоляции:","сечение провода:","количество кабелей в траншее, канале, туннеле или\n коллекторе, на галерее или эстакаде, труб в скважине:","уровень напряжения:"]
[null,1]
[null,1,"KL",{"$f":"ROW($D$24)","v":24},null,"Удалить",{"$f":"$G$23 & (ROWS($G$25:G26)-2)+1&\".\"","v":"2.1."}]
[null,1]
[null,null,null,null,null,null,null,"Добавить"]
[null,1]
[null,null,null,null,null,null,"3.","СТРОИТЕЛЬСТВО ПУНКТОВ СЕКЦИОНИРОВАНИЯ (РЕКЛОУЗЕРОВ, РАСПРЕДЕЛИТЕЛЬНЫХ ПУНКТОВ, ПЕРЕКЛЮЧАТЕЛЬНЫХ ПУНКТОВ) ",null,null,null,null,null,null,{"$f":"SUM(O32:O34)","v":0},{"$f":"SUM(P32:P34)","v":0},null,{"$f":"SUM(R32:R34)","v":0},{"$f":"SUM(S32:S34)","v":0},null,{"$f":"SUM(U32:U34)","v":0},{"$f":"SUM(V32:V34)","v":0}]
[null,null,null,null,null,null,null,"пункт секционирования: ","номинальный ток:","количество ячеек в распределительном или переключательном пункте:","уровень напряжения:"]
[null,1]
[null,1,"PS",{"$f":"ROW($D$31)","v":31},null,"Удалить",{"$f":"$G$30 & (ROWS($G$32:G33)-2)+1&\".\"","v":"3.1."}]
[null,1]
[null,null,null,null,null,null,null,"Добавить"]
[null,1]
[null,null,null,null,null,null,"4.","ОБЕСПЕЧЕНИЕ СРЕДСТВАМИ КОММЕРЧЕСКОГО УЧЕТА ЭЛЕКТРИЧЕСКОЙ ЭНЕРГИИ (МОЩНОСТИ)",null,null,null,null,null,null,{"$f":"SUM(O39:O41)","v":0},{"$f":"SUM(P39:P41)","v":0},null,0,0,null,0,0]
[null,null,null,null,null,null,null,"количество фаз:","тип включения:","уровень напряжения: "]
[null,1]
[null,1,"SKU",{"$f":"ROW($D$38)","v":38},null,"Удалить",{"$f":"$G$37 & (ROWS($G$39:G40)-2)+1&\".\"","v":"4.1."}]
[null,1]
[null,null,null,null,null,null,null,"Добавить"]
[null,1]
["ddShPr51_rstop"]

{"sheet":"Прил. № 5.2 не город","index":10,"n_rows":44,"n_cols":22,"rows_kept":44,"cut":false,"hidden":false,"merged":[[10,6,10,10],[10,17,10,21],[11,6,11,19],[12,6,13,6],[12,7,13,12],[12,13,12,15],[12,16,12,18],[12,19,12,21],[14,7,14,12],[15,7,15,12],[22,7,22,12],[36,7,36,12],[29,7,29,12]]}
[]
[]
[]
[]
[]
[]
[]
[]
[]
[]
[null,null,null,null,null,null,null,null,null,null,null,null,null,null,null,null,null,"Приложение № 5.2\nк Методическим указаниям по определению\nразмера платы за технологическое\nприсоединение к электрическим сетям"]
["dd_hide/show","hide","range_name","address_title","address_svod",null,"Сведения о строительстве линий электропередачи, пунктов секционирования, а также об обеспечении средствами\nкоммерческого учета электрической энергии (мощности)  при технологическом присоединении энергопринимающих устройств максимальной мощностью менее 670 кВт и на уровне напряжения 20 кВ и менее\n(заполняется для территорий, не относящихся к городским населенным пунктам)"]
[null,null,null,null,null,null,"№ п/п","Объект электросетевого хозяйства/Средство коммерческого учета электрической энергии (мощности)",null,null,null,null,null,"Год ввода объекта 2018",null,null,"Год ввода объекта 2019",null,null,"Год ввода объекта 2020"]
[null,null,null,null,null,null,null,null,null,null,null,null,null,"уровень напряжения, кВ","протяженность\n(для линий электропередачи), км. / количество\n(для пунктов секционирования, точек учета ээ), шт.","присоединенная максимальная мощность (менее 670 кВт), кВт","уровень напряжения, кВ","протяженность\n(для линий электропередачи), км. / количество\n(для пунктов секционирования, точек учета ээ), шт.","присоединенная максимальная мощность (менее 670 кВт), кВт","уровень напряжения, кВ","протяженность\n(для линий электропередачи), км. / количество\n(для пунктов секционирования, точек учета ээ), шт.","присоединенная максимальная мощность (менее 670 кВт), кВт"]
["ddShPr52_rstart",null,null,null,null,null,1,2,null,null,null,null,null,3,4,5,6,7,8,9,10,11]
[null,null,null,null,null,null,"1.","СТРОИТЕЛЬСТВО ВОЗДУШНЫХ ЛИНИЙ ЭЛЕКТРОПЕРЕДАЧИ",null,null,null,null,null,null,{"$f":"SUM(O18:O20)","v":0},{"$f":"SUM(P18:P20)","v":0},null,{"$f":"SUM(R18:R20)","v":0},{"$f":"SUM(S18:S20)","v":0},null,{"$f":"SUM(U18:U20)","v":0},{"$f":"SUM(V18:V20)","v":0}]
[null,null,null,null,null,null,null,"тип опор: ","тип провода:","материал провода:","сечение провода:","количество цепей:","уровень напряжения:"]
[null,1]
[null,1,"VL",{"$f":"ROW($D$17)","v":17},null,"Удалить",{"$f":"$G$16 & (ROWS($G$18:G19)-2)+1&\".\"","v":"1.1."}]
[null,1]
[null,null,null,null,null,null,null,"Добавить"]
[null,1]
[null,null,null,null,null,null,"2.","СТРОИТЕЛЬСТВО КАБЕЛЬНЫХ ЛИНИЙ ЭЛЕКТРОПЕРЕДАЧИ",null,null,null,null,null,null,{"$f":"SUM(O25:O27)","v":0},{"$f":"SUM(P25:P27)","v":0},null,{"$f":"SUM(R25:R27)","v":0},{"$f":"SUM(S25:S27)","v":0},null,{"$f":"SUM(U25:U27)","v":0},{"$f":"SUM(V25:V27)","v":0}]
[null,null,null,null,null,null,null,"способ прокладки: ","количество жил:","тип изоляции:","сечение провода:","количество кабелей в траншее, канале, туннеле или\n коллекторе, на галерее или эстакаде, труб в скважине:","уровень напряжения:"]
[null,1]
[null,1,"KL",{"$f":"ROW($D$24)","v":24},null,"Удалить",{"$f":"$G$23 & (ROWS($G$25:G26)-2)+1&\".\"","v":"2.1."}]
[null,1]
[null,null,null,null,null,null,null,"Добавить"]
[null,1]
[null,null,null,null,null,null,"3.","СТРОИТЕЛЬСТВО ПУНКТОВ СЕКЦИОНИРОВАНИЯ (РЕКЛОУЗЕРОВ, РАСПРЕДЕЛИТЕЛЬНЫХ ПУНКТОВ, ПЕРЕКЛЮЧАТЕЛЬНЫХ ПУНКТОВ) ",null,null,null,null,null,null,{"$f":"SUM(O32:O34)","v":0},{"$f":"SUM(P32:P34)","v":0},null,{"$f":"SUM(R32:R34)","v":0},{"$f":"SUM(S32:S34)","v":0},null,{"$f":"SUM(U32:U34)","v":0},{"$f":"SUM(V32:V34)","v":0}]
[null,null,null,null,null,null,null,"пункт секционирования: ","номинальный ток:","количество ячеек в распределительном или переключательном пункте:","уровень напряжения:"]
[null,1]
[null,1,"PS",{"$f":"ROW($D$31)","v":31},null,"Удалить",{"$f":"$G$30 & (ROWS($G$32:G33)-2)+1&\".\"","v":"3.1."}]
[null,1]
[null,null,null,null,null,null,null,"Добавить"]
[null,1]
[null,null,null,null,null,null,"4.","ОБЕСПЕЧЕНИЕ СРЕДСТВАМИ КОММЕРЧЕСКОГО УЧЕТА ЭЛЕКТРИЧЕСКОЙ ЭНЕРГИИ (МОЩНОСТИ)",null,null,null,null,null,null,{"$f":"SUM(O39:O41)","v":0},{"$f":"SUM(P39:P41)","v":0},null,0,0,null,0,0]
[null,null,null,null,null,null,null,"количество фаз:","тип включения:","уровень напряжения: "]
[null,1]
[null,1,"SKU",{"$f":"ROW($D$38)","v":38},null,"Удалить",{"$f":"$G$37 & (ROWS($G$39:G40)-2)+1&\".\"","v":"4.1."}]
[null,1]
[null,null,null,null,null,null,null,"Добавить"]
[null,1]
["ddShPr52_rstop"]

{"sheet":"Проверка","index":11,"n_rows":1,"n_cols":4,"rows_kept":1,"cut":false,"hidden":false,"merged":[]}
[null,"Сообщение","Адрес","Статус"]

{"sheet":"Справочник","index":12,"n_rows":16,"n_cols":40,"rows_kept":16,"cut":false,"hidden":true,"merged":[[2,1,2,6],[2,9,2,15],[2,37,2,40],[2,17,2,20],[2,22,2,25],[2,27,2,29],[2,32,2,34]]}
[null,"VL1","VL2","VL3","VL4","VL5","VL6",null,null,"KL1","KL2","KL3","KL4","KL5","KL6",null,null,"PS1","PS2","PS3","PS4",null,"TS1","TS2","TS3","TS4",null,"RTP1","RTP2","RTP3",null,null,"SP1","SP2","SP3",null,null,"SKU1","SKU2","SKU3"]
[null,"1. ВЛ Воздушные линии",null,null,null,null,null,null,null,"2. КЛ Кабельные линии",null,null,null,null,null,null,null,"3. Пункты секционирования",null,null,null,null,"4. ТП Трансформаторные подстанции",null,null,null,null,"5. РТП Распред. трансформаторные подстанции",null,null,null,null,"6. Подстанции",null,null,null,null,"7. СКУ Средства коммерческого учета"]
[null,"строительство воздушных линий электропередачи ",null,null,null,null,null,null,null,"строительство кабельных линий электропередачи ",null,null,null,null,null,null,null,"строительство пунктов секционирования (реклоузеров, распределительных пунктов, переключательных пунктов)",null,null,null,null,"строительство трансформаторных подстанций (ТП), за исключением распределительных трансформаторных подстанций (РТП), с уровнем напряжения до 35 кВ",null,null,null,null,"строительство распределительных трансформаторных подстанций (РТП) с уровнем напряжения до 35 кВ",null,null,null,null,"строительство подстанций уровнем напряжения 35 кВ и выше",null,null,null,null,"обеспечение средствами коммерческого учета электрической энергии (мощности)"]
[null,"тип опор: ","тип провода:","материал провода:","сечение провода:","количество цепей:","уровень напряжения:",null,null,"способ прокладки: ","количество жил:","тип изоляции:","сечение провода:","количество кабелей в траншее, канале, туннеле или\n коллекторе, на галерее или эстакаде, труб в скважине:","уровень напряжения:",null,null,"пункт секционирования: ","номинальный ток:","количество ячеек в распределительном или \nпереключательном пункте:","уровень напряжения:",null,"уровень напряжения: ","количество трансформаторов:","трансформаторная мощность:","тип трансформаторной подстанции:",null,"количество трансформаторов:","трансформаторная мощность:","уровень напряжения: ",null,null,"количество трансформаторов:","трансформаторная мощность:","уровень напряжения: ",null,null,"количество фаз:","тип включения:","уровень напряжения: "]
[null,"деревянные","изолированный","медный","до 50 мм2 включительно","одноцепная","0,4 кВ и ниже",null,null,"в траншеях","одножильные","резиновая и пластмассовая ","до 50 мм2 включительно","один","0,4 кВ и ниже",null,null,"реклоузеры","до 100 А включительно","до 5 ячеек включительно","0,4 кВ и ниже",null,"6/0,4 кВ","однотрансформаторные","до 25 кВА включительно","столбовой/мачтовый ",null,"однотрансформаторные","до 25 кВА включительно","6(10)/0,4 кВ",null,null,"однотрансформаторные","до 6,3 МВА включительно","35/6(10) кВ",null,null,"однофазный","прямой","0,4 кВ и ниже"]
[null,"железобетонные опоры","неизолированный","стальной ","от 50 до 100 мм2 включительно","двухцепная","1-20 кВ",null,null,"в блоках","многожильные","бумажная","от 50 до 100 мм2 включительно","два","1-10 кВ",null,null,"линейные разъединители","от 100 до 250 А включительно","от 5 до 10 ячеек включительно","1-20 кВ",null,"10/0,4 кВ","двухтрансформаторные","от 25 до 100 кВА включительно","шкафной или киосковый",null,"двухтрансформаторные","от 25 до 100 кВА включительно","20/0,4 кВ",null,null,"двухтрансформаторные","от 6,3 до 10 МВА включительно","35/0,4 кВ",null,null,"трехфазный","полукосвенный","1-20 кВ"]
[null,"металлические опоры",null,"сталеалюминиевый","от 100 до 200 мм2 включительно",null,"27,5-60 кВ",null,null,"в каналах",null,null,"от 100 до 200 мм2 включительно","три","15-20 кВ",null,null,"выключатели нагрузки, устанавливаемые вне\nтрансформаторных подстанций и распределительных и переключательных пунктов (РП)","от 250 до 500 А включительно","от 10 до 15 ячеек включительно","35 кВ",null,"20/0,4 кВ",null,"от 100 до 250 кВА включительно","блочный",null,null,"от 100 до 250 кВА включительно",null,null,null,null,"от 10 до 16 МВА включительно","110/35 кВ",null,null,null,"косвенный","35 кВ"]
[null,"металлические опоры, за исключением многогранных",null,"алюминиевый","от 200 до 500 мм2 включительно",null,"110 кВ и выше",null,null,"в туннелях и коллекторах",null,null,"от 200 до 250 мм2 включительно","четыре","27,5-60 кВ",null,null,"распределительные пункты (РП), за исключением комплектных распределительных устройств наружной установки (КРН, КРУН)","от 500 до 1000 А включительно","свыше 15 ячеек","110 кВ и выше",null,"6/10 (10/6) кВ",null,"от 250 до 400 кВА включительно",null,null,null,"от 250 до 400 кВА включительно",null,null,null,null,"от 16 до 25 МВА включительно","110/6(10) кВ",null,null,null,null,"110 кВ и выше"]
[null,"многогранные металлические опоры",null,null,"от 500 до 800 мм2 включительно",null,null,null,null,"в галереях и эстакадах",null,null,"от 250 до 300 мм2 включительно","более четырех","110 кВ и выше",null,null,"комплектные распределительные устройства наружной установки (КРН, КРУН)","свыше 1000 А",null,null,null,"10/20 (20/10) кВ",null,"от 400 до 1000 кВА включительно",null,null,null,"от 400 до 1000 кВА включительно",null,null,null,null,"от 25 до 32 МВА включительно","110/35/6(10) кВ"]
[null,null,null,null,"свыше 800 мм2",null,null,null,null,"горизонтальное наклонное бурение",null,null,"от 300 до 400 мм2 включительно",null,null,null,null,"переключательные пункты",null,null,null,null,"6/20 (20/6) кВ",null,"от 1000 до 1250 кВА включительно",null,null,null,"от 1000 до 1250 кВА включительно",null,null,null,null,"от 32 до 40 МВА включительно"]
[null,null,null,null,null,null,null,null,null,null,null,null,"от 400 до 500 мм2 включительно",null,null,null,null,null,null,null,null,null,null,null,"от 1250 до 1600 кВА включительно",null,null,null,"от 1250 до 1600 кВА включительно",null,null,null,null,"от 40 до 63 МВА включительно"]
[null,null,null,null,null,null,null,null,null,null,null,null,"от 500 до 800 мм2 включительно",null,null,null,null,null,null,null,null,null,null,null,"от 1600 до 2000 кВА включительно",null,null,null,"от 1600 до 2000 кВА включительно",null,null,null,null,"от 63 до 80 МВА включительно"]
[null,null,null,null,null,null,null,null,null,null,null,null,"свыше 800 мм2",null,null,null,null,null,null,null,null,null,null,null,"от 2000 до 2500 кВА включительно",null,null,null,"от 2000 до 2500 кВА включительно",null,null,null,null,"от 80 до 100 МВА включительно"]
[null,null,null,null,null,null,null,null,null,null,null,null,null,null,null,null,null,null,null,null,null,null,null,null,"от 2500 до 3150 кВА включительно",null,null,null,"от 2500 до 3150 кВА включительно",null,null,null,null,"свыше 100 МВА"]
[null,null,null,null,null,null,null,null,null,null,null,null,null,null,null,null,null,null,null,null,null,null,null,null,"от 3150 до 4000 кВА включительно",null,null,null,"свыше 3150 кВА"]
[null,null,null,null,null,null,null,null,null,null,null,null,null,null,null,null,null,null,null,null,null,null,null,null,"свыше 4000 кВА"]